[Event "Titled Tuesday Blitz April 05 Late 2022"]
[White "Reprintsev, Alexander"]
[Black "Pavlidou, Ekaterini"]
[WhiteFideId "14100541"]
[BlackFideId "4213262"]
[WhiteElo "2568"]
[BlackElo "2375"]
[Result "1-0"]
[Round "02"]
[TimeControl "180+1"]
[Date "2022.04.06"]
[WhiteClock "0:01:20"]
[BlackClock "0:00:15"]

1. e4 {[%clk 0:02:55]}  c5 {[%clk 0:02:56]} 2. b3 {[%clk 0:02:55]}  Nc6 {[%clk 0:02:56]} 3. Bb2 {[%clk 0:02:51]}  Nf6 {[%clk 0:02:57]} 4. e5 {[%clk 0:02:51]}  Nd5 {[%clk 0:02:57]} 5. Nf3 {[%clk 0:02:51]}  e6 {[%clk 0:02:55]} 6. c4 {[%clk 0:02:46]}  Nc7 {[%clk 0:02:54]} 7. Nc3 {[%clk 0:02:41]}  d5 {[%clk 0:02:50]} 8. exd6 {[%clk 0:02:38]}  Bxd6 {[%clk 0:02:48]} 9. d4 {[%clk 0:02:38]}  cxd4 {[%clk 0:02:45]} 10. Nxd4 {[%clk 0:02:38]}  O-O {[%clk 0:02:37]} 11. Nxc6 {[%clk 0:02:37]}  bxc6 {[%clk 0:02:37]} 12. Be2 {[%clk 0:02:31]}  Qe7 {[%clk 0:02:31]} 13. Bf3 {[%clk 0:02:31]}  Rd8 {[%clk 0:02:30]} 14. Qe2 {[%clk 0:02:31]}  Rb8 {[%clk 0:02:19]} 15. O-O {[%clk 0:02:30]}  c5 {[%clk 0:02:18]} 16. Ne4 {[%clk 0:02:29]}  Ne8 {[%clk 0:02:14]} 17. Rad1 {[%clk 0:02:28]}  Bb7 {[%clk 0:02:06]} 18. Qe3 {[%clk 0:02:22]}  Qc7 {[%clk 0:01:31]} 19. g3 {[%clk 0:02:21]}  Bf8 {[%clk 0:01:25]} 20. Ng5 {[%clk 0:02:12]}  h6 {[%clk 0:01:19]} 21. Be5 {[%clk 0:02:09]}  Nd6 {[%clk 0:01:14]} 22. Bxb7 {[%clk 0:02:08]}  Rxb7 {[%clk 0:01:11]} 23. Ne4 {[%clk 0:02:08]}  Qc6 {[%clk 0:00:56]} 24. Nxd6 {[%clk 0:01:54]}  Bxd6 {[%clk 0:00:55]} 25. Qc3 {[%clk 0:01:42]}  f6 {[%clk 0:00:47]} 26. Bxf6 {[%clk 0:01:42]}  gxf6 {[%clk 0:00:43]} 27. Qxf6 {[%clk 0:01:43]}  Re7 {[%clk 0:00:40]} 28. Qg6+ {[%clk 0:01:41]}  Kf8 {[%clk 0:00:40]} 29. Qxh6+ {[%clk 0:01:41]}  Ke8 {[%clk 0:00:41]} 30. Rfe1 {[%clk 0:01:29]}  Kd7 {[%clk 0:00:40]} 31. Rd3 {[%clk 0:01:24]}  Qc8 {[%clk 0:00:15]} 32. Red1 {[%clk 0:01:24]}  Kc7 {[%clk 0:00:15]} 33. Qd2 {[%clk 0:01:24]}  Red7 {[%clk 0:00:14]} 34. Qa5+ {[%clk 0:01:24]}  Kb7 {[%clk 0:00:14]} 35. Qb5+ {[%clk 0:01:24]}  Ka8 {[%clk 0:00:15]} 36. b4 {[%clk 0:01:21]}  Qb7 {[%clk 0:00:15]} 37. Qxb7+ {[%clk 0:01:20]}  Kxb7 {[%clk 0:00:15]} 38. bxc5 {[%clk 0:01:20]} 1-0


[Site "https://www.chess.com"]

[Event "Titled Tuesday Blitz April 05 Late 2022"]
[White "Roberson, Peter T"]
[Black "Kazakouski, Valery"]
[WhiteFideId "412384"]
[BlackFideId "13507443"]
[WhiteElo "2346"]
[BlackElo "2524"]
[Result "0-1"]
[Round "02"]
[TimeControl "180+1"]
[Date "2022.04.05"]
[WhiteClock "0:00:24"]
[BlackClock "0:01:17"]

1. e4 {[%clk 0:03:00]}  c5 {[%clk 0:02:59]} 2. Nf3 {[%clk 0:03:01]}  a6 {[%clk 0:02:58]} 3. c3 {[%clk 0:02:59]}  d5 {[%clk 0:02:58]} 4. exd5 {[%clk 0:02:59]}  Qxd5 {[%clk 0:02:59]} 5. d4 {[%clk 0:02:59]}  Bg4 {[%clk 0:03:00]} 6. Nbd2 {[%clk 0:02:48]}  cxd4 {[%clk 0:02:54]} 7. Bc4 {[%clk 0:02:48]}  Bxf3 {[%clk 0:02:41]} 8. Qxf3 {[%clk 0:01:52]}  Qxf3 {[%clk 0:02:37]} 9. Nxf3 {[%clk 0:01:53]}  dxc3 {[%clk 0:02:31]} 10. Ne5 {[%clk 0:01:50]}  e6 {[%clk 0:02:26]} 11. bxc3 {[%clk 0:01:50]}  Nd7 {[%clk 0:02:13]} 12. Bf4 {[%clk 0:01:45]}  Rc8 {[%clk 0:02:09]} 13. Be2 {[%clk 0:01:41]}  Bd6 {[%clk 0:02:03]} 14. Nxf7 {[%clk 0:01:05]}  Bxf4 {[%clk 0:02:00]} 15. Nxh8 {[%clk 0:01:05]}  Ngf6 {[%clk 0:01:54]} 16. Rb1 {[%clk 0:01:05]}  Nc5 {[%clk 0:01:48]} 17. Bf3 {[%clk 0:00:51]}  Ke7 {[%clk 0:01:41]} 18. Ke2 {[%clk 0:00:47]}  b5 {[%clk 0:01:31]} 19. c4 {[%clk 0:00:35]}  bxc4 {[%clk 0:01:30]} 20. Rb6 {[%clk 0:00:34]}  Rxh8 {[%clk 0:01:25]} 21. Rc6 {[%clk 0:00:33]}  Nfd7 {[%clk 0:01:26]} 22. g3 {[%clk 0:00:32]}  Be5 {[%clk 0:01:22]} 23. Bg4 {[%clk 0:00:26]}  Rb8 {[%clk 0:01:20]} 24. f4 {[%clk 0:00:24]}  Rb2+ {[%clk 0:01:20]} 25. Kf3 {[%clk 0:00:25]}  Bd4 {[%clk 0:01:18]} 26. Re1 {[%clk 0:00:24]}  Rf2# {[%clk 0:01:17]} 0-1


[Site "https://www.chess.com"]

[Event "Titled Tuesday Blitz April 05 Late 2022"]
[White "Romanchuk, Viktor"]
[Black "Kobalia, Mikhail"]
[WhiteFideId "14109271"]
[BlackFideId "4119150"]
[WhiteElo "2242"]
[BlackElo "2667"]
[Result "0-1"]
[Round "02"]
[TimeControl "180+1"]
[Date "2022.04.05"]
[WhiteClock "0:00:01"]
[BlackClock "0:00:07"]

1. d4 {[%clk 0:03:00]}  d5 {[%clk 0:02:59]} 2. c4 {[%clk 0:03:01]}  e6 {[%clk 0:02:59]} 3. Nc3 {[%clk 0:03:01]}  c6 {[%clk 0:03:00]} 4. e3 {[%clk 0:03:01]}  Nf6 {[%clk 0:02:59]} 5. Nf3 {[%clk 0:03:00]}  a6 {[%clk 0:02:59]} 6. Qc2 {[%clk 0:03:00]}  c5 {[%clk 0:02:59]} 7. cxd5 {[%clk 0:02:55]}  exd5 {[%clk 0:02:59]} 8. Be2 {[%clk 0:02:54]}  Nc6 {[%clk 0:02:58]} 9. O-O {[%clk 0:02:53]}  Be6 {[%clk 0:02:47]} 10. Rd1 {[%clk 0:02:52]}  cxd4 {[%clk 0:02:45]} 11. Nxd4 {[%clk 0:02:51]}  Nxd4 {[%clk 0:02:46]} 12. Rxd4 {[%clk 0:02:49]}  Bc5 {[%clk 0:02:46]} 13. Rd1 {[%clk 0:02:42]}  Qe7 {[%clk 0:02:42]} 14. Bf3 {[%clk 0:02:12]}  O-O {[%clk 0:02:40]} 15. Nxd5 {[%clk 0:01:57]}  Nxd5 {[%clk 0:02:36]} 16. Bxd5 {[%clk 0:01:58]}  Bxd5 {[%clk 0:02:36]} 17. Rxd5 {[%clk 0:01:59]}  Rac8 {[%clk 0:02:36]} 18. Qd1 {[%clk 0:01:19]}  Rfd8 {[%clk 0:02:35]} 19. b4 {[%clk 0:00:42]}  Rxd5 {[%clk 0:01:46]} 20. Qxd5 {[%clk 0:00:43]}  Rd8 {[%clk 0:01:45]} 21. Qb3 {[%clk 0:00:35]}  Bxb4 {[%clk 0:01:34]} 22. Bb2 {[%clk 0:00:34]}  b5 {[%clk 0:01:29]} 23. Rd1 {[%clk 0:00:28]}  Rxd1+ {[%clk 0:01:21]} 24. Qxd1 {[%clk 0:00:29]}  Qd6 {[%clk 0:00:46]} 25. Qxd6 {[%clk 0:00:25]}  Bxd6 {[%clk 0:00:45]} 26. h3 {[%clk 0:00:21]}  f6 {[%clk 0:00:45]} 27. Kf1 {[%clk 0:00:21]}  Kf7 {[%clk 0:00:45]} 28. Ke2 {[%clk 0:00:22]}  Ke6 {[%clk 0:00:45]} 29. e4 {[%clk 0:00:22]}  Be5 {[%clk 0:00:44]} 30. Bc1 {[%clk 0:00:21]}  Bd4 {[%clk 0:00:34]} 31. f4 {[%clk 0:00:20]}  a5 {[%clk 0:00:34]} 32. Kd3 {[%clk 0:00:20]}  Bc5 {[%clk 0:00:34]} 33. Bb2 {[%clk 0:00:16]}  a4 {[%clk 0:00:33]} 34. g4 {[%clk 0:00:15]}  Kd7 {[%clk 0:00:29]} 35. e5 {[%clk 0:00:14]}  fxe5 {[%clk 0:00:17]} 36. Bxe5 {[%clk 0:00:15]}  Bf8 {[%clk 0:00:14]} 37. f5 {[%clk 0:00:14]}  Kc6 {[%clk 0:00:15]} 38. Ke4 {[%clk 0:00:12]}  b4 {[%clk 0:00:15]} 39. g5 {[%clk 0:00:11]}  b3 {[%clk 0:00:15]} 40. axb3 {[%clk 0:00:10]}  axb3 {[%clk 0:00:15]} 41. f6 {[%clk 0:00:10]}  g6 {[%clk 0:00:14]} 42. Kd3 {[%clk 0:00:08]}  Kd5 {[%clk 0:00:14]} 43. Bb2 {[%clk 0:00:07]}  Bb4 {[%clk 0:00:14]} 44. Ba1 {[%clk 0:00:06]}  Ke6 {[%clk 0:00:09]} 45. Kc4 {[%clk 0:00:06]}  Bd2 {[%clk 0:00:09]} 46. Kxb3 {[%clk 0:00:03]}  Bxg5 {[%clk 0:00:09]} 47. f7 {[%clk 0:00:02]}  Kxf7 {[%clk 0:00:09]} 48. Bd4 {[%clk 0:00:03]}  Ke6 {[%clk 0:00:08]} 49. Kc4 {[%clk 0:00:03]}  Kf5 {[%clk 0:00:08]} 50. Kd3 {[%clk 0:00:01]}  Bf6 {[%clk 0:00:07]} 0-1


[Site "https://www.chess.com"]

[Event "Titled Tuesday Blitz April 05 Late 2022"]
[White "Rustemov, Alexander"]
[Black "Nilsson, Joakim"]
[WhiteFideId "4119002"]
[BlackFideId "1723383"]
[WhiteElo "2796"]
[BlackElo "2207"]
[Result "1-0"]
[Round "02"]
[TimeControl "180+1"]
[Date "2022.04.06"]
[WhiteClock "0:00:40"]
[BlackClock "0:00:23"]

1. d4 {[%clk 0:03:00]}  Nf6 {[%clk 0:02:58]} 2. c4 {[%clk 0:03:01]}  e6 {[%clk 0:02:58]} 3. Nf3 {[%clk 0:03:01]}  Bb4+ {[%clk 0:02:54]} 4. Bd2 {[%clk 0:03:01]}  c5 {[%clk 0:02:53]} 5. Bxb4 {[%clk 0:03:00]}  cxb4 {[%clk 0:02:54]} 6. g3 {[%clk 0:02:59]}  O-O {[%clk 0:02:54]} 7. Bg2 {[%clk 0:02:58]}  d6 {[%clk 0:02:54]} 8. O-O {[%clk 0:02:56]}  Nc6 {[%clk 0:02:54]} 9. a3 {[%clk 0:02:52]}  bxa3 {[%clk 0:02:54]} 10. Rxa3 {[%clk 0:02:49]}  e5 {[%clk 0:02:54]} 11. Nc3 {[%clk 0:02:47]}  Bg4 {[%clk 0:02:53]} 12. dxe5 {[%clk 0:02:36]}  dxe5 {[%clk 0:02:53]} 13. h3 {[%clk 0:02:33]}  Be6 {[%clk 0:02:51]} 14. Nd2 {[%clk 0:02:25]}  Qe7 {[%clk 0:02:41]} 15. Nd5 {[%clk 0:02:22]}  Bxd5 {[%clk 0:02:39]} 16. cxd5 {[%clk 0:02:22]}  Nb4 {[%clk 0:02:38]} 17. Qb3 {[%clk 0:02:18]}  a5 {[%clk 0:02:35]} 18. Nc4 {[%clk 0:02:17]}  Nbxd5 {[%clk 0:02:28]} 19. Nxa5 {[%clk 0:02:09]}  Qc5 {[%clk 0:01:52]} 20. Nxb7 {[%clk 0:02:04]}  Rxa3 {[%clk 0:01:52]} 21. Qxa3 {[%clk 0:01:51]}  Qb6 {[%clk 0:01:48]} 22. Nd6 {[%clk 0:01:50]}  Rb8 {[%clk 0:01:42]} 23. Nc4 {[%clk 0:01:45]}  Qb5 {[%clk 0:01:41]} 24. Rc1 {[%clk 0:01:38]}  h6 {[%clk 0:01:40]} 25. Qd6 {[%clk 0:01:36]}  Rc8 {[%clk 0:01:35]} 26. e4 {[%clk 0:01:18]}  Rxc4 {[%clk 0:01:29]} 27. Rxc4 {[%clk 0:01:17]}  Qxc4 {[%clk 0:01:29]} 28. exd5 {[%clk 0:01:17]}  Qc1+ {[%clk 0:01:29]} 29. Kh2 {[%clk 0:01:16]}  Qxb2 {[%clk 0:01:30]} 30. Qc5 {[%clk 0:01:07]}  Qd2 {[%clk 0:01:20]} 31. d6 {[%clk 0:01:04]}  e4 {[%clk 0:01:20]} 32. Kg1 {[%clk 0:00:55]}  g6 {[%clk 0:00:54]} 33. Qe5 {[%clk 0:00:53]}  Kg7 {[%clk 0:00:40]} 34. Bxe4 {[%clk 0:00:45]}  h5 {[%clk 0:00:26]} 35. Bf3 {[%clk 0:00:43]}  h4 {[%clk 0:00:24]} 36. g4 {[%clk 0:00:42]}  Qc1+ {[%clk 0:00:22]} 37. Kg2 {[%clk 0:00:42]}  Qa3 {[%clk 0:00:23]} 38. g5 {[%clk 0:00:40]} 1-0


[Site "https://www.chess.com"]

[Event "Titled Tuesday Blitz April 05 Late 2022"]
[White "Sadhwani, Raunak"]
[Black "Bashirli, Nail"]
[WhiteFideId "35093487"]
[BlackFideId "13406809"]
[WhiteElo "2616"]
[BlackElo "2333"]
[Result "1-0"]
[Round "02"]
[TimeControl "180+1"]
[Date "2022.04.05"]
[WhiteClock "0:02:22"]
[BlackClock "0:01:11"]

1. d4 {[%clk 0:03:00]}  Nf6 {[%clk 0:02:51]} 2. Nf3 {[%clk 0:03:00]}  e6 {[%clk 0:02:45]} 3. Bf4 {[%clk 0:03:00]}  b6 {[%clk 0:02:45]} 4. e3 {[%clk 0:03:00]}  Bb7 {[%clk 0:02:45]} 5. Nbd2 {[%clk 0:03:01]}  g6 {[%clk 0:02:46]} 6. h3 {[%clk 0:02:57]}  Bg7 {[%clk 0:02:46]} 7. a4 {[%clk 0:02:58]}  a6 {[%clk 0:02:47]} 8. Bh2 {[%clk 0:02:52]}  O-O {[%clk 0:02:47]} 9. a5 {[%clk 0:02:51]}  b5 {[%clk 0:02:46]} 10. c4 {[%clk 0:02:51]}  bxc4 {[%clk 0:02:42]} 11. Bxc4 {[%clk 0:02:52]}  d6 {[%clk 0:02:42]} 12. O-O {[%clk 0:02:50]}  Nbd7 {[%clk 0:02:43]} 13. Qe2 {[%clk 0:02:49]}  Qe7 {[%clk 0:02:42]} 14. Rfc1 {[%clk 0:02:47]}  Rfc8 {[%clk 0:02:42]} 15. Ra3 {[%clk 0:02:45]}  d5 {[%clk 0:02:42]} 16. Rb3 {[%clk 0:02:41]}  Rcb8 {[%clk 0:01:56]} 17. Bd3 {[%clk 0:02:28]}  Ne8 {[%clk 0:01:09]} 18. Bxc7 {[%clk 0:02:27]}  Nxc7 {[%clk 0:01:10]} 19. Rxc7 {[%clk 0:02:27]}  Bc8 {[%clk 0:01:11]} 20. Rxb8 {[%clk 0:02:21]}  Rxb8 {[%clk 0:01:11]} 21. Bxa6 {[%clk 0:02:22]} 1-0


[Site "https://www.chess.com"]

[Event "Titled Tuesday Blitz April 05 Late 2022"]
[White "Sanal, Vahap"]
[Black "Karas, Marek"]
[WhiteFideId "6300545"]
[BlackFideId "14928558"]
[WhiteElo "2603"]
[BlackElo "2271"]
[Result "1-0"]
[Round "02"]
[TimeControl "180+1"]
[Date "2022.04.05"]
[WhiteClock "0:00:46"]
[BlackClock "0:00:06"]

1. e4 {[%clk 0:03:00]}  e6 {[%clk 0:02:59]} 2. d4 {[%clk 0:03:00]}  d5 {[%clk 0:03:00]} 3. Nd2 {[%clk 0:03:00]}  a6 {[%clk 0:03:00]} 4. Ngf3 {[%clk 0:02:59]}  c5 {[%clk 0:03:00]} 5. exd5 {[%clk 0:03:00]}  exd5 {[%clk 0:03:01]} 6. Bd3 {[%clk 0:03:00]}  c4 {[%clk 0:03:00]} 7. Be2 {[%clk 0:03:00]}  Nf6 {[%clk 0:02:59]} 8. O-O {[%clk 0:03:00]}  Bd6 {[%clk 0:02:56]} 9. b3 {[%clk 0:03:01]}  cxb3 {[%clk 0:02:55]} 10. axb3 {[%clk 0:03:02]}  O-O {[%clk 0:02:55]} 11. Bb2 {[%clk 0:03:01]}  Nc6 {[%clk 0:02:55]} 12. Ne5 {[%clk 0:03:00]}  Qc7 {[%clk 0:02:49]} 13. Ndf3 {[%clk 0:03:00]}  Bf5 {[%clk 0:02:47]} 14. c4 {[%clk 0:02:58]}  Rfe8 {[%clk 0:02:44]} 15. h3 {[%clk 0:02:56]}  Rad8 {[%clk 0:02:33]} 16. Rc1 {[%clk 0:02:55]}  dxc4 {[%clk 0:02:28]} 17. Nxc6 {[%clk 0:02:40]}  Qxc6 {[%clk 0:02:29]} 18. bxc4 {[%clk 0:02:38]}  Qe4 {[%clk 0:02:07]} 19. Re1 {[%clk 0:02:33]}  Qf4 {[%clk 0:01:47]} 20. Qb3 {[%clk 0:01:56]}  Re7 {[%clk 0:01:38]} 21. Ne5 {[%clk 0:01:38]}  Ne4 {[%clk 0:01:27]} 22. Qf3 {[%clk 0:01:33]}  Bxe5 {[%clk 0:01:20]} 23. dxe5 {[%clk 0:01:31]}  Qxf3 {[%clk 0:00:48]} 24. Bxf3 {[%clk 0:01:31]}  Nc5 {[%clk 0:00:48]} 25. Ba3 {[%clk 0:01:27]}  Rc8 {[%clk 0:00:47]} 26. Rcd1 {[%clk 0:01:18]}  Be6 {[%clk 0:00:35]} 27. Rd4 {[%clk 0:01:13]}  h6 {[%clk 0:00:30]} 28. Red1 {[%clk 0:01:11]}  Rec7 {[%clk 0:00:26]} 29. Bxc5 {[%clk 0:01:08]}  Rxc5 {[%clk 0:00:26]} 30. Bxb7 {[%clk 0:01:08]}  R8c7 {[%clk 0:00:20]} 31. Bd5 {[%clk 0:01:03]}  a5 {[%clk 0:00:16]} 32. f4 {[%clk 0:01:03]}  Ra7 {[%clk 0:00:13]} 33. g4 {[%clk 0:01:02]}  a4 {[%clk 0:00:10]} 34. f5 {[%clk 0:01:02]}  Bxd5 {[%clk 0:00:11]} 35. cxd5 {[%clk 0:01:03]}  a3 {[%clk 0:00:11]} 36. d6 {[%clk 0:01:03]}  Ra8 {[%clk 0:00:08]} 37. e6 {[%clk 0:00:59]}  fxe6 {[%clk 0:00:08]} 38. fxe6 {[%clk 0:01:00]}  Re5 {[%clk 0:00:07]} 39. e7 {[%clk 0:00:58]}  Kf7 {[%clk 0:00:07]} 40. d7 {[%clk 0:00:56]}  Kxe7 {[%clk 0:00:07]} 41. d8=Q+ {[%clk 0:00:55]}  Rxd8 {[%clk 0:00:07]} 42. Rxd8 {[%clk 0:00:56]}  Ra5 {[%clk 0:00:07]} 43. R8d2 {[%clk 0:00:57]}  Kf6 {[%clk 0:00:07]} 44. Ra1 {[%clk 0:00:57]}  Kg5 {[%clk 0:00:07]} 45. Rd3 {[%clk 0:00:57]}  a2 {[%clk 0:00:07]} 46. Rd2 {[%clk 0:00:58]}  Kh4 {[%clk 0:00:08]} 47. Raxa2 {[%clk 0:00:58]}  Re5 {[%clk 0:00:07]} 48. Re2 {[%clk 0:00:54]}  Rd5 {[%clk 0:00:07]} 49. Rad2 {[%clk 0:00:54]}  Ra5 {[%clk 0:00:07]} 50. Re7 {[%clk 0:00:51]}  g5 {[%clk 0:00:07]} 51. Re3 {[%clk 0:00:48]}  h5 {[%clk 0:00:05]} 52. gxh5 {[%clk 0:00:47]}  Kxh5 {[%clk 0:00:05]} 53. Rg2 {[%clk 0:00:47]}  Kh4 {[%clk 0:00:05]} 54. Reg3 {[%clk 0:00:47]}  Rf5 {[%clk 0:00:05]} 55. Rg4+ {[%clk 0:00:47]}  Kh5 {[%clk 0:00:05]} 56. h4 {[%clk 0:00:46]}  gxh4 {[%clk 0:00:06]} 57. Rg8 {[%clk 0:00:46]} 1-0


[Site "https://www.chess.com"]

[Event "Titled Tuesday Blitz April 05 Late 2022"]
[White "Shandrygin, Nikita"]
[Black "Hamidi, Amir Mohammad"]
[WhiteFideId "24198668"]
[BlackFideId "12563285"]
[WhiteElo "2500"]
[BlackElo "2734"]
[Result "0-1"]
[Round "02"]
[TimeControl "180+1"]
[Date "2022.04.06"]
[WhiteClock "0:00:02"]
[BlackClock "0:01:05"]

1. Nf3 {[%clk 0:03:00]}  g6 {[%clk 0:02:59]} 2. g3 {[%clk 0:03:01]}  Bg7 {[%clk 0:02:59]} 3. d4 {[%clk 0:03:02]}  d6 {[%clk 0:02:59]} 4. Bg2 {[%clk 0:03:02]}  Bd7 {[%clk 0:02:59]} 5. O-O {[%clk 0:02:55]}  Qc8 {[%clk 0:02:59]} 6. Re1 {[%clk 0:02:54]}  Bh3 {[%clk 0:02:57]} 7. Bh1 {[%clk 0:02:55]}  h5 {[%clk 0:02:56]} 8. e4 {[%clk 0:02:26]}  h4 {[%clk 0:02:43]} 9. Nxh4 {[%clk 0:02:23]}  Bf6 {[%clk 0:02:42]} 10. Ng2 {[%clk 0:02:15]}  Nc6 {[%clk 0:02:40]} 11. c3 {[%clk 0:02:10]}  Bg4 {[%clk 0:02:40]} 12. Qd3 {[%clk 0:01:58]}  Bg7 {[%clk 0:02:27]} 13. Ne3 {[%clk 0:01:56]}  Bd7 {[%clk 0:02:20]} 14. f4 {[%clk 0:01:38]}  Nf6 {[%clk 0:02:17]} 15. e5 {[%clk 0:01:34]}  Ng4 {[%clk 0:02:16]} 16. Nxg4 {[%clk 0:01:20]}  Bxg4 {[%clk 0:02:15]} 17. Nd2 {[%clk 0:01:16]}  dxe5 {[%clk 0:02:08]} 18. fxe5 {[%clk 0:01:10]}  Qd7 {[%clk 0:01:51]} 19. Qb5 {[%clk 0:00:46]}  Rb8 {[%clk 0:01:34]} 20. Bxc6 {[%clk 0:00:15]}  Qxc6 {[%clk 0:01:35]} 21. Qxc6+ {[%clk 0:00:15]}  bxc6 {[%clk 0:01:35]} 22. Ne4 {[%clk 0:00:16]}  Be6 {[%clk 0:01:31]} 23. Nc5 {[%clk 0:00:15]}  Bd5 {[%clk 0:01:32]} 24. b3 {[%clk 0:00:15]}  Bf3 {[%clk 0:01:27]} 25. Rf1 {[%clk 0:00:14]}  Bg4 {[%clk 0:01:27]} 26. Bf4 {[%clk 0:00:13]}  Rd8 {[%clk 0:01:26]} 27. Rae1 {[%clk 0:00:12]}  Rd5 {[%clk 0:01:24]} 28. e6 {[%clk 0:00:11]}  fxe6 {[%clk 0:01:24]} 29. Bxc7 {[%clk 0:00:08]}  Bh3 {[%clk 0:01:23]} 30. Rf2 {[%clk 0:00:07]}  Bf6 {[%clk 0:01:20]} 31. Bf4 {[%clk 0:00:06]}  Kf7 {[%clk 0:01:19]} 32. Rfe2 {[%clk 0:00:06]}  g5 {[%clk 0:01:16]} 33. Be5 {[%clk 0:00:06]}  Bg4 {[%clk 0:01:15]} 34. Re3 {[%clk 0:00:05]}  Re8 {[%clk 0:01:14]} 35. Nd3 {[%clk 0:00:03]}  Bf5 {[%clk 0:01:14]} 36. Nc5 {[%clk 0:00:03]}  a5 {[%clk 0:01:12]} 37. Rf1 {[%clk 0:00:03]}  Kg6 {[%clk 0:01:12]} 38. Bxf6 {[%clk 0:00:03]}  exf6 {[%clk 0:01:13]} 39. Ne4 {[%clk 0:00:03]}  Red8 {[%clk 0:01:11]} 40. Nd2 {[%clk 0:00:02]}  c5 {[%clk 0:01:11]} 41. Nf3 {[%clk 0:00:02]}  Bg4 {[%clk 0:01:10]} 42. c4 {[%clk 0:00:02]}  Rxd4 {[%clk 0:01:07]} 43. Nxd4 {[%clk 0:00:01]}  cxd4 {[%clk 0:01:07]} 44. Ree1 {[%clk 0:00:02]}  d3 {[%clk 0:01:05]} 45. Rf2 {[%clk 0:00:02]}  d2 {[%clk 0:01:05]} 0-1


[Site "https://www.chess.com"]

[Event "Titled Tuesday Blitz April 05 Late 2022"]
[White "Sjugirov, Sanan"]
[Black "Nazaretyan, Tigran"]
[WhiteFideId "4189302"]
[BlackFideId "24162345"]
[WhiteElo "2602"]
[BlackElo "2225"]
[Result "1-0"]
[Round "02"]
[TimeControl "180+1"]
[Date "2022.04.05"]
[WhiteClock "0:00:20"]
[BlackClock "0:00:02"]

1. e4 {[%clk 0:03:00]}  c5 {[%clk 0:02:59]} 2. Nf3 {[%clk 0:03:00]}  Nc6 {[%clk 0:02:59]} 3. Bb5 {[%clk 0:03:00]}  g6 {[%clk 0:02:59]} 4. Bxc6 {[%clk 0:02:58]}  dxc6 {[%clk 0:02:58]} 5. d3 {[%clk 0:02:58]}  Bg7 {[%clk 0:02:59]} 6. h3 {[%clk 0:02:58]}  Nf6 {[%clk 0:02:59]} 7. a4 {[%clk 0:02:57]}  a5 {[%clk 0:02:57]} 8. Be3 {[%clk 0:02:53]}  Nd7 {[%clk 0:02:54]} 9. Qc1 {[%clk 0:02:53]}  h6 {[%clk 0:02:51]} 10. Na3 {[%clk 0:02:51]}  b6 {[%clk 0:02:48]} 11. O-O {[%clk 0:02:46]}  Ba6 {[%clk 0:02:48]} 12. Rb1 {[%clk 0:02:29]}  Nf8 {[%clk 0:02:42]} 13. b3 {[%clk 0:02:24]}  g5 {[%clk 0:02:39]} 14. Nc4 {[%clk 0:02:22]}  Ng6 {[%clk 0:02:38]} 15. Nh2 {[%clk 0:02:14]}  O-O {[%clk 0:02:32]} 16. Qd1 {[%clk 0:02:12]}  e5 {[%clk 0:02:23]} 17. Qh5 {[%clk 0:02:08]}  Bc8 {[%clk 0:02:11]} 18. Ng4 {[%clk 0:02:04]}  Bxg4 {[%clk 0:02:10]} 19. Qxg4 {[%clk 0:01:55]}  Nf4 {[%clk 0:02:07]} 20. g3 {[%clk 0:01:43]}  h5 {[%clk 0:01:54]} 21. Qf5 {[%clk 0:01:43]}  Ne2+ {[%clk 0:01:48]} 22. Kg2 {[%clk 0:01:42]}  f6 {[%clk 0:01:17]} 23. Qe6+ {[%clk 0:01:39]}  Kh7 {[%clk 0:01:14]} 24. Qxc6 {[%clk 0:01:38]}  Rb8 {[%clk 0:01:12]} 25. Rbe1 {[%clk 0:01:34]}  Nd4 {[%clk 0:01:04]} 26. Bxd4 {[%clk 0:01:34]}  cxd4 {[%clk 0:01:05]} 27. Qe6 {[%clk 0:01:32]}  Bh6 {[%clk 0:01:04]} 28. Rh1 {[%clk 0:01:24]}  Kg7 {[%clk 0:01:03]} 29. h4 {[%clk 0:01:22]}  g4 {[%clk 0:01:00]} 30. Qf5 {[%clk 0:01:22]}  Qe8 {[%clk 0:00:57]} 31. Rhf1 {[%clk 0:01:17]}  Qg6 {[%clk 0:00:55]} 32. Qxg6+ {[%clk 0:01:13]}  Kxg6 {[%clk 0:00:55]} 33. f3 {[%clk 0:01:13]}  b5 {[%clk 0:00:44]} 34. axb5 {[%clk 0:01:12]}  Rxb5 {[%clk 0:00:44]} 35. fxg4 {[%clk 0:01:12]}  hxg4 {[%clk 0:00:44]} 36. Rf5 {[%clk 0:01:11]}  Ra8 {[%clk 0:00:38]} 37. Ra1 {[%clk 0:00:45]}  Bf8 {[%clk 0:00:31]} 38. h5+ {[%clk 0:00:40]}  Kg7 {[%clk 0:00:31]} 39. Rh1 {[%clk 0:00:25]}  Be7 {[%clk 0:00:26]} 40. Rh4 {[%clk 0:00:25]}  a4 {[%clk 0:00:24]} 41. Rxg4+ {[%clk 0:00:25]}  Kh7 {[%clk 0:00:23]} 42. bxa4 {[%clk 0:00:24]}  Rxa4 {[%clk 0:00:22]} 43. h6 {[%clk 0:00:22]}  Kxh6 {[%clk 0:00:16]} 44. Rf1 {[%clk 0:00:21]}  Kh5 {[%clk 0:00:11]} 45. Rg8 {[%clk 0:00:21]}  Rb1 {[%clk 0:00:02]} 46. Rxb1 {[%clk 0:00:21]}  Ra1 {[%clk 0:00:03]} 47. Rxa1 {[%clk 0:00:20]}  f5 {[%clk 0:00:02]} 48. Rh1+ {[%clk 0:00:20]} 1-0


[Site "https://www.chess.com"]

[Event "Titled Tuesday Blitz April 05 Late 2022"]
[White "Sliwicki, Damian"]
[Black "Korchmar, Vasiliy"]
[WhiteFideId "1127128"]
[BlackFideId "24131750"]
[WhiteElo "2427"]
[BlackElo "2768"]
[Result "0-1"]
[Round "02"]
[TimeControl "180+1"]
[Date "2022.04.06"]
[WhiteClock "0:00:41"]
[BlackClock "0:01:47"]

1. e4 {[%clk 0:03:00]}  c5 {[%clk 0:02:59]} 2. Nf3 {[%clk 0:02:57]}  d6 {[%clk 0:03:00]} 3. d4 {[%clk 0:02:55]}  cxd4 {[%clk 0:03:01]} 4. Qxd4 {[%clk 0:02:50]}  Nc6 {[%clk 0:03:00]} 5. Bb5 {[%clk 0:02:48]}  a6 {[%clk 0:03:01]} 6. Bxc6+ {[%clk 0:02:47]}  bxc6 {[%clk 0:03:02]} 7. Nc3 {[%clk 0:02:46]}  e5 {[%clk 0:03:02]} 8. Qd3 {[%clk 0:02:46]}  Nf6 {[%clk 0:03:00]} 9. Bg5 {[%clk 0:02:46]}  h6 {[%clk 0:02:54]} 10. Bh4 {[%clk 0:02:45]}  Be7 {[%clk 0:02:52]} 11. O-O {[%clk 0:02:43]}  Be6 {[%clk 0:02:43]} 12. Rad1 {[%clk 0:02:36]}  g5 {[%clk 0:02:41]} 13. Bg3 {[%clk 0:02:33]}  Nh5 {[%clk 0:02:38]} 14. Nxe5 {[%clk 0:02:18]}  dxe5 {[%clk 0:02:18]} 15. Qf3 {[%clk 0:02:18]}  Qc8 {[%clk 0:02:19]} 16. Bxe5 {[%clk 0:01:47]}  Bg4 {[%clk 0:02:19]} 17. Qd3 {[%clk 0:01:35]}  O-O {[%clk 0:02:10]} 18. f3 {[%clk 0:01:29]}  Be6 {[%clk 0:02:10]} 19. Ne2 {[%clk 0:01:16]}  Qb7 {[%clk 0:02:01]} 20. b3 {[%clk 0:01:12]}  Qb5 {[%clk 0:01:58]} 21. g4 {[%clk 0:00:47]}  Qxe5 {[%clk 0:01:50]} 22. gxh5 {[%clk 0:00:45]}  Rfd8 {[%clk 0:01:48]} 23. Qe3 {[%clk 0:00:41]}  Bc5 {[%clk 0:01:47]} 0-1


[Site "https://www.chess.com"]